{"text_format":"1","workbook":"xlsx","n_sheets":3,"sheets":["Relación de gastos","Relación de ingresos ","gastos e ingresos"],"not_rendered":{"charts":0,"images":2,"macros":1,"external_links":0,"defined_names":8,"comments":3,"pivot_tables":0},"unopened":[],"bounds":{"document_bytes":16777216,"sheet_cells":100000,"rows_first":2000,"rows_last":500,"rows_between":2000,"halvings":0,"cell_chars":16384,"cell_head_chars":4096},"cells_cut":0,"cells_raw":0,"read":"whole","date_system":"1900"}

{"sheet":"Relación de gastos","index":0,"n_rows":161,"n_cols":12,"rows_kept":161,"cut":false,"hidden":false,"merged":[[159,0,159,12],[160,0,160,12],[137,0,137,12],[156,11,156,12],[157,11,157,12],[158,11,158,12],[142,11,142,12],[143,11,143,12],[144,11,144,12],[145,11,145,12],[146,11,146,12],[147,11,147,12],[148,11,148,12],[149,11,149,12],[150,11,150,12],[152,11,152,12],[153,11,153,12],[154,11,154,12],[155,11,155,12],[141,0,141,12],[150,0,150,10],[152,0,152,10],[153,0,153,10],[154,0,154,10],[155,0,155,10],[156,0,156,10],[157,0,157,10],[158,0,158,10],[151,0,151,12],[142,0,142,10],[143,0,143,10],[144,0,144,10],[145,0,145,10],[146,0,146,10],[147,0,147,10],[148,0,148,10],[149,0,149,10],[126,0,127,9],[135,0,135,10],[138,0,138,10],[139,0,139,10],[140,0,140,10],[51,11,51,12],[50,11,50,12],[110,0,110,12],[111,11,111,12],[120,11,120,12],[121,0,121,6],[121,11,121,12],[122,0,122,2],[122,3,122,6],[122,11,122,12],[123,0,123,5],[123,11,123,12],[112,11,112,12],[113,11,113,12],[114,11,114,12],[115,0,115,6],[115,11,115,12],[131,1,131,2],[98,0,98,12],[33,11,33,12],[40,11,40,12],[39,11,39,12],[38,11,38,12],[47,11,47,12],[46,11,46,12],[45,11,45,12],[44,11,44,12],[47,0,47,6],[37,11,37,12],[99,11,99,12],[100,11,100,12],[101,11,101,12],[116,0,116,12],[117,11,117,12],[118,11,118,12],[119,11,119,12],[102,11,102,12],[103,0,103,6],[103,11,103,12],[104,0,104,12],[105,11,105,12],[106,11,106,12],[107,11,107,12],[108,11,108,12],[109,0,109,6],[109,11,109,12],[90,11,90,12],[91,0,91,6],[91,11,91,12],[92,0,92,12],[93,11,93,12],[94,11,94,12],[95,11,95,12],[96,11,96,12],[97,0,97,6],[97,11,97,12],[82,11,82,12],[83,11,83,12],[84,11,84,12],[85,0,85,6],[85,11,85,12],[86,0,86,12],[87,11,87,12],[88,11,88,12],[89,11,89,12],[75,11,75,12],[76,11,76,12],[77,11,77,12],[78,11,78,12],[74,0,74,12],[79,0,79,6],[79,11,79,12],[80,0,80,12],[81,11,81,12],[67,11,67,12],[69,11,69,12],[70,11,70,12],[68,0,68,12],[66,11,66,12],[71,11,71,12],[72,11,72,12],[73,0,73,6],[73,11,73,12],[10,0,10,12],[15,11,15,12],[32,11,32,12],[31,11,31,12],[7,3,7,4],[53,0,53,6],[35,11,35,12],[34,11,34,12],[16,11,16,12],[43,11,43,12],[41,11,41,12],[22,11,22,12],[23,0,23,6],[23,11,23,12],[24,0,24,12],[25,11,25,12],[26,11,26,12],[27,11,27,12],[48,0,48,12],[36,0,36,12],[42,0,42,12],[28,11,28,12],[29,0,29,6],[29,11,29,12],[0,0,0,12],[4,0,4,1],[16,0,16,6],[2,2,2,3],[3,2,3,3],[4,2,4,3],[11,11,11,12],[2,0,2,1],[2,4,2,6],[3,4,3,6],[4,4,4,6],[7,2,8,2],[12,11,12,12],[2,9,2,10],[3,9,3,10],[4,9,4,10],[9,0,9,10],[3,0,3,1],[7,1,8,1],[7,0,8,0],[6,0,6,4],[13,11,13,12],[7,11,7,12],[8,11,8,12],[125,0,125,10],[54,0,54,12],[55,11,55,12],[56,11,56,12],[57,11,57,12],[58,11,58,12],[59,0,59,6],[59,11,59,12],[17,0,17,12],[18,11,18,12],[19,11,19,12],[20,11,20,12],[49,11,49,12],[53,11,53,12],[52,11,52,12],[35,0,35,6],[41,0,41,6],[30,0,30,12],[60,0,60,2],[60,3,60,6],[60,11,60,12],[61,0,61,10],[62,0,62,12],[67,0,67,6]]}
["Relación clasificada de todos los gastos realizados para la ejecución de la actividad subvencionada"]
[]
["Persona física/jurídica beneficiaria:         ",null,null,null,"Importe total del proyecto:",null,null,null,null,null,null,"euros"]
["Código de subvención:",null,null,null,"Importe de la subvención otorgada:",null,null,null,null,null,null,"euros"]
["Nombre del proyecto subvencionado:",null,null,null,"Período de ejecución del proyecto subvencionado:",null,null,null,null,null,null,"a"]
[]
["Gastos del proyecto/actividad/servicio subvencionado (*)"]
["Núm. de orden (0)","Número de documento: justificantes gasto personal (1), factura o recibo/tiquet(2)","Concepto de la factura / \ndocumento probatorio equivalente","Emisor/a de la factura",null,"Fecha de emisión","Importe total de la factura","Porcentaje de iva deducido o el de después de aplicar la Prorrata","Importe después de deducir el IVA correspondiente","Importe imputable (dedicado) al proyecto (3)","Importe imputable a la subvención municipal (4)","Observaciones"]
[null,null,null,"NIF","Nombre","dd/mm/aaaa","euros","%","euros","euros","euros"]
["GASTOS DIRECTOS (Aquellos que se identifican directamente con el proyecto)"]
["D1.  Retribuciones y seguridad social (régimen general o régimen de autónomos) del personal propio vinculado al proyecto"]
[]
[]
[]
[]
[]
[null,null,null,null,null,null,null,null,"Subtotal D1",{"$f":"SUM(J12:J16)","v":0},{"$f":"SUM(K12:K16)","v":0}]
["D2.  Trabajos realizados por profesionales y empresas externas directamente vinculadas al acompañamiento de procesos de la entidad y con sus asociadas"]
[]
[]
[]
[]
[]
[null,null,null,null,null,null,null,null,"Subtotal D2",{"$f":"SUM(J19:J23)","v":0},{"$f":"SUM(K19:K23)","v":0}]
["D3.  Alquiler de bienes inmuebles directamente vinculados al proyecto"]
[]
[]
[]
[]
[null,null,null,null,null,null,null,null,"Subtotal D3",{"$f":"SUM(J26:J29)","v":0},{"$f":"SUM(K26:K29)","v":0}]
["D4.  Adquisición de materiales y bienes consumibles íntegramente imputables al proyecto"]
[]
[]
[]
[]
[null,null,null,null,null,null,null,null,"Subtotal D4",{"$f":"SUM(J32:J35)","v":0},{"$f":"SUM(K32:K35)","v":0}]
["D5.  Publicidad y propaganda de las actividades directamente vinculadas al proyecto"]
[]
[]
[]
[]
[null,null,null,null,null,null,null,null,"Subtotal D5",{"$f":"SUM(J38:J41)","v":0},{"$f":"SUM(K38:K41)","v":0}]
["D6.  Viajes y desplazamientos imputables a las actividades del proyecto"]
[]
[]
[]
[]
[null,null,null,null,null,null,null,null,"Subtotal D6",{"$f":"SUM(J44:J47)","v":0},{"$f":"SUM(K44:K47)","v":0}]
["D7.  Gastos del informe de auditoría"]
[]
[]
[]
[]
[null,null,null,null,null,null,null,null,"Subtotal D7",{"$f":"SUM(J50:J53)","v":0},{"$f":"SUM(K50:K53)","v":0}]
["D8.  Otros gastos que de manera justificada puedan imputarse directamente al proyecto"]
[]
[]
[]
[]
[null,null,null,null,null,null,null,null,"Subtotal D8",{"$f":"SUM(J56:J59)","v":0},{"$f":"SUM(K56:K59)","v":0}]
["TOTAL GASTOS DIRECTOS ",null,null,null,null,null,null,null,"TOTAL GASTOS DIRECTOS",{"$f":"+J17+J36+J42+J48+J54+J30+J24+J60","v":0},{"$f":"+K17+K36+K42+K48+K54+K30+K24+K60","v":0}]
["GASTOS INDIRECTOS (no se pueden asignar directamente al proyecto sin utilizar algún % de asignación)"]
["I.1 Personal de soporte al proyecto (Nóminas y seguridad social)"]
[]
[]
[]
[]
[null,null,null,null,null,null,null,null,"Subtotal I1",{"$f":"SUM(J64:J67)","v":0},{"$f":"SUM(K64:K67)","v":0}]
["I.2  Seguros"]
[]
[]
[]
[]
[null,null,null,null,null,null,null,null,"Subtotal I2",{"$f":"SUM(J70:J73)","v":0},{"$f":"SUM(K70:K73)","v":0}]
["I.3  Amortización"]
[]
[]
[]
[]
[null,null,null,null,null,null,null,null,"Subtotal I3",{"$f":"SUM(J76:J79)","v":0},{"$f":"SUM(K76:K79)","v":0}]
["I.4  Alquiler de bienes inmuebles"]
[]
[]
[]
[]
[null,null,null,null,null,null,null,null,"Subtotal I4",{"$f":"SUM(J82:J85)","v":0},{"$f":"SUM(K82:K85)","v":0}]
["I.5  Adquisición de materiales y bienes consumibles parcialmente imputables al proyecto"]
[]
[]
[]
[]
[null,null,null,null,null,null,null,null,"Subtotal I5",{"$f":"SUM(J88:J91)","v":0},{"$f":"SUM(K88:K91)","v":0}]
["I.6  Mantenimiento de edificios y/o instalaciones"]
[]
[]
[]
[]
[null,null,null,null,null,null,null,null,"Subtotal I6",{"$f":"SUM(J94:J97)","v":0},{"$f":"SUM(K94:K97)","v":0}]
["I.7  Comunicaciones (teléfono, correos, conexión a internet)"]
[]
[]
[]
[]
[null,null,null,null,null,null,null,null,"Subtotal I7",{"$f":"SUM(J100:J103)","v":0},{"$f":"SUM(K100:K103)","v":0}]
["I.8  Gastos financieros"]
[]
[]
[]
[]
[null,null,null,null,null,null,null,null,"Subtotal I8",{"$f":"SUM(J106:J109)","v":0},{"$f":"SUM(K106:K109)","v":0}]
["I.9  Suministros "]
[]
[]
[]
[]
[null,null,null,null,null,null,null,null,"Subtotal I9",{"$f":"SUM(J112:J115)","v":0},{"$f":"SUM(K112:K115)","v":0}]
["I.10  Trabajo realizado por otras empresas, parcialmente imputables al proyecto (limpieza, seguridad...)"]
[]
[]
[]
[]
[null,null,null,null,null,null,null,null,"Subtotal I10",{"$f":"SUM(J118:J121)","v":0},{"$f":"SUM(K118:K121)","v":0}]
["TOTAL GASTOS INDIRECTOS ",null,null,null,null,null,null,null,"TOTAL GASTOS INDIRECTOS",{"$f":"+J68+J74+J80+J86+J92+J98+J104+J110+J116+J122","v":0},{"$f":"+K68+K74+K80+K86+K92+K98+K104+K110+K116+K122","v":0}]
["TOTAL GASTOS",null,null,null,null,null,null,null,"TOTAL",{"$f":"+J123+J61","v":0},{"$f":"+K123+K61","v":0}]
[]
["El Sr./Sra. (indicar el nombre y apellidos de la persona representante que firma la justificación) con DNI/NIE (indicar el núm. DNI) en calidad de persona física beneficiaria o representante legal de la persona jurídica beneficiaria (indicar nombre y apellidos) con NIF (indicar núm DNI)."]
["CERTIFICA que los gastos imputados al proyecto/actividad/servicio subvencionado han sido efectivamente efectuados; que custodiará la documentación soporte que lo acredita; que esta documentación se encuentra a disposición del Ayuntamiento de Barcelona o de los otros entes municipales en los archivos de esta Entidad, durante un período mínimo de 4 años a contar desde la fecha de presentación de la presente justificación."]
[]
[]
[]
[]
[null,"Población y fecha: ",null,null,"Firma y sello (en caso de registro físico)"]
[]
[]
["Notas:"]
["(*) Deben relacionarse todos los gastos del proyecto/actividad/servicio subvencionado. En el caso de que el número de filas de cada concepto sea insuficiente podéis insertar líneas dentro del mismo concepto seleccionando una celda verde y haciendo clic sobre el botón de insertar línea."]
["(0) El número de orden debe ser correlativo comenzando por D.1.1, D.1.2, D.1.3, D.2.4, etc."]
["(1) Respecto a los gastos de recursos humanos, puede ser subvencionable el coste total salarial mensual, que corresponde a la suma de la retribución bruta que aparece en la nómina del trabajador/a más la cuota de la empresa a la Seg. Social. Los gastos de personal se justifican con la nómina del trabajador/a acompañada de los correspondientes TC1 y TC2 de la TGSS y el modelo 111 del IRPF."]
["(2) En el caso de que el documento justificativo del resto de gastos, no sea una factura, sino otro documento probatorio equivalente, como un recibo o justificante (como para dietas o transporte público), hay que indicarlo en la columna \"observaciones\"."]
["(3) En el caso de que un justificante incluya conceptos que no tienen que ver con el proyecto/actividad/servicio por el cual se ha otorgado la subvención, aquí sólo se debe indicar la parte que realmente se ha dedicado al proyecto."]
["(4) En esta columna se debe indicar el importe total o parcial de la factura que se imputa a la subvención recibida del Ayuntamiento de Barcelona. El total imputado, en esta columna, debe ser igual al importe de la subvención recibida."]
["Modalidad Ba: Intercooperación de 2º y mayor nivel: Proyectos promovidos por entidades de la Economía Social y Solidaria o de las finanzas éticas de segundo nivel y superior, que contribuyan al despliegue de la Estrategia BCN 2030 de ESS de Barcelona, y tengan como destinatarias a sus entidades socias"]
["1.  La cuantía de la subvención otorgada no superará el 80% del gasto total del proyecto a subvencionar. "]
["2.  El importe máximo de subvención para la modalidad \"a\" del ámbito temático B de Interccoperación es 35.000,00 €."]
["3.  En el caso de que la solicitud presentada sobrepase el importe máximo, se considerará como importe solicitado el máximo de lo establecido en la convocatoria."]
["4.  Se limita con un máximo del 25% el importe de la subvención para gastos de personal propio asignado al proyecto."]
["5.  Los gastos indirectos imputados al proyecto detallados, no podrán superar el 10% del importe de la subvención."]
["6.  El carácter subvencionable del gasto de amortización estará sujeto a las condiciones siguientes:"]
["* Que las subvenciones no hayan contribuido en la compra de los bienes."]
["* Que la amortización se calcule de conformidad con las normas de contabilidad generalmente aceptadas."]
["* Que el coste se refiera al período subvencionable."]
["7.  Cuando deban hacerse gastos de más de 12.000 €, sin IVA, en el caso de prestaciones de servicios o entrega de bienes y para aquellos gastos de más de 30.000 €, sin IVA, en el caso de ejecución de obras, deberán incorporarse tres presupuestos solicitados y argumentar el motivo de la adjudicación en el caso de no ser la propuesta más favorable económicamente."]
["8.  En ningún caso se considerarán gastos subvencionables:"]
["* Los impuestos indirectos cuando sean susceptibles de recuperación o compensación, ni los impuestos sobre la renta."]
["* Los gastos de inversión, incluidas las adquisiciones de bienes muebles."]
["* Los gastos realizados con fecha anterior al inicio del proyecto y fecha posterior a la finalización del proyecto."]
["* Otros gastos que se indiquen en la convocatoria."]
["9. Para las subvenciones otorgadas por importe igual o superior a 20.000 € es necesario un informe de auditoría para la justificación. "]
["10. El importe de este informe se considera gasto subvencionable, con un límite máximo de 1.500 €."]
["11. Los salarios percibidos por las personas contratadas en el marco del proyecto subvencionado no sean inferiores a 1.088,56€ brutos mensuales (13.062,72€ brutos en cómputo anual) en el caso de jornadas completas, o la parte proporcional en el caso de jornadas parciales (punto 7 de las bases 2019: Requisitos de los proyectos)."]
["12. Los materiales producidos de difusión, estudios, informes o materiales didácticos utilizados, etc. en el caso de tratarse de gasto elegible de la subvención, deberán tener licencia Creative Commons -Compartir Igual- (share alike) y no podrán tener la condición –Sin Obras Derivadas- (no derivate Works)."]

{"sheet":"Relación de ingresos ","index":1,"n_rows":70,"n_cols":10,"rows_kept":70,"cut":false,"hidden":false,"merged":[[23,0,23,3],[43,6,43,9],[42,6,42,9],[18,0,18,3],[39,0,39,9],[40,6,40,9],[23,6,23,9],[22,6,22,9],[20,6,20,9],[31,6,31,9],[35,6,35,9],[43,0,43,3],[41,6,41,9],[30,6,30,9],[38,6,38,9],[37,6,37,9],[13,6,13,9],[18,6,18,9],[25,6,25,9],[33,6,33,9],[32,6,32,9],[26,6,26,9],[28,6,28,9],[27,6,27,9],[17,6,17,9],[16,6,16,9],[15,6,15,9],[21,6,21,9],[38,0,38,3],[24,0,24,9],[29,0,29,9],[34,0,34,9],[33,0,33,3],[28,0,28,3],[36,6,36,9],[0,0,0,9],[9,0,9,9],[14,0,14,9],[19,0,19,9],[7,6,8,9],[10,6,10,9],[11,6,11,9],[7,0,8,0],[12,6,12,9],[3,2,3,3],[2,2,2,3],[6,0,6,3],[4,2,4,3],[7,2,7,3],[7,1,8,1],[13,0,13,3],[44,0,44,9],[49,0,49,9],[48,6,48,9],[50,6,50,9],[48,0,48,3],[45,6,45,9],[65,1,65,2],[55,6,55,9],[57,6,57,9],[51,6,51,9],[52,6,52,9],[53,6,53,9],[54,6,54,9],[57,0,57,3],[56,0,56,3],[56,6,56,9],[59,0,59,9],[60,0,61,9]]}
["Detalle de todos los ingresos obtenidos y aportaciones del propio beneficiario para la ejecución de la actividad subvencionada"]
[]
[null,"Nombre de la persona física/jurídica beneficiaria:        ",{"$f":"IF('Relación de gastos'!C3:D3<>\"\",'Relación de gastos'!C3:D3,\"\")","v":""},null,"Importe total del proyecto:",null,null,{"$f":"IF(+'Relación de gastos'!J3=\"\",\"\",+'Relación de gastos'!J3)","v":""},"euros"]
[null,"Código de subvención:",{"$f":"IF('Relación de gastos'!C4:D4<>\"\",'Relación de gastos'!C4:D4,\"\")","v":""},null,"Importe de la subvención otorgada:",null,null,{"$f":"IF(+'Relación de gastos'!J4=\"\",\"\",+'Relación de gastos'!J4)","v":""},"euros"]
[null,"Nombre del proyecto subvencionado:",{"$f":"IF('Relación de gastos'!C5:D5<>\"\",'Relación de gastos'!C5:D5,\"\")","v":""},null,"Período de ejecución del proyecto subvencionado:",null,null,{"$f":"IF(+'Relación de gastos'!J5=\"\",\"\",+'Relación de gastos'!J5)","v":""},"a",{"$f":"IF(+'Relación de gastos'!M5=\"\",\"\",+'Relación de gastos'!M5)","v":""}]
[]
["Ingresos del proyecto/actividad/servicio subvencionado"]
["Núm. de orden (0)","Concepto del ingreso","Emisor/a del ingreso",null,"Fecha de cobro\n(dd/mm/aaaa)","Importe","Observaciones"]
[null,null,"NIF","Nombre","(1)","euros"]
["A. Subvención municipal "]
[]
[]
[]
[null,null,null,null,"Subtotal A",{"$f":"SUM(F11:F13)","v":0}]
["B. Subvenciones de otras administraciones"]
[]
[]
[]
[null,null,null,null,"Subtotal B",{"$f":"SUM(F16:F18)","v":0}]
["C. Subvenciones de entes privados"]
[]
[]
[]
[null,null,null,null,"Subtotal C",{"$f":"SUM(F21:F23)","v":0}]
["D. Recursos propios de la entidad aplicados al proyecto"]
[]
[]
[]
[null,null,null,null,"Subtotal D",{"$f":"SUM(F26:F28)","v":0}]
["E. Taquillaje"]
[]
[]
[]
[null,null,null,null,"Subtotal E",{"$f":"SUM(F31:F33)","v":0}]
["F. Cuotas de inscripción"]
[]
[]
[]
[null,null,null,null,"Subtotal F",{"$f":"SUM(F36:F38)","v":0}]
["G. Venta de Productos"]
[]
[]
[]
[null,null,null,null,"Subtotal G",{"$f":"SUM(F41:F43)","v":0}]
["H. Publicidad y/o Esponsorización"]
[]
[]
[]
[null,null,null,null,"Subtotal H",{"$f":"SUM(F46:F48)","v":0}]
["I. Otros ingresos"]
[]
[]
[]
[]
[]
[]
[null,null,null,null,"Subtotal I",{"$f":"SUM(F51:F56)","v":0}]
["Total INGRESOS",null,null,null,"TOTAL",{"$f":"+F14+F19+F24+F29+F34+F39+F44+F49+F57","v":0}]
[]
["El Sr./Sra. (indicar el nombre y apellidos de la persona representante que firma la justificación) con DNI/NIE (indicar el núm. DNI) en calidad de persona física beneficiaria o representante legal de la persona jurídica beneficiaria (indicar nombre y apellidos) con NIF (indicar núm DNI)."]
["CERTIFICA que los gastos imputados al proyecto/actividad/servicio subvencionado han sido efectivamente efectuados; que custodiará la documentación soporte que lo acredita; que esta documentación se encuentra a disposición del Ayuntamiento de Barcelona o de los otros entes municipales en los archivos de esta Entidad, durante un período mínimo de 4 años a contar desde la fecha de presentación de la presente justificación."]
[]
[]
[]
[]
[null,"Población y fecha: ",null,null,"Firma y sello (en caso de registro físico)"]
[]
[null,"Nota:"]
[null,"(0) El número de orden debe ser correlativo comenzando por el número 1"]
[null,"(1) En caso de que el ingreso esté pendiente de cobro, indicar \"P. Cobro\" "]

{"sheet":"gastos e ingresos","index":2,"n_rows":79,"n_cols":11,"rows_kept":79,"cut":false,"hidden":false,"merged":[[39,0,40,9],[42,1,42,2],[20,1,21,1],[20,2,21,2],[20,3,21,3],[20,4,21,4],[22,0,23,1],[4,0,4,1],[4,2,4,3],[4,5,4,6],[5,0,5,1],[5,2,5,3],[5,5,5,6],[10,9,11,9],[10,0,11,1],[10,2,11,2],[10,3,11,3],[10,6,11,7],[6,0,6,1],[6,2,6,3],[9,0,9,1],[9,6,9,7],[10,8,11,8],[51,0,51,10],[28,6,28,8],[29,6,29,8],[25,6,25,7],[22,2,23,2],[22,3,23,3],[24,6,24,7],[25,8,25,9],[33,7,35,10],[45,0,45,10],[46,0,46,10],[47,0,47,10],[48,0,48,10],[49,0,49,10],[50,0,50,10],[38,0,38,9]]}
[]
[]
["Estado de los gastos realizados y de los ingresos obtenidos para la ejecución de la actividad subvencionada (*)"]
[]
["Nombre de la persona física/jurídica beneficiaria:         ",null,{"$f":"IF('Relación de gastos'!C3:D3<>\"\",'Relación de gastos'!C3:D3,\"\")","v":""},null,null,"Importe total del proyecto:",null,{"$f":"'Relación de ingresos '!H3","v":""},"euros"]
["Código de subvención:",null,{"$f":"IF('Relación de gastos'!C4:D4<>\"\",'Relación de gastos'!C4:D4,\"\")","v":""},null,null,"Importe de la subvención otorgada:",null,{"$f":"'Relación de ingresos '!H4","v":""},"euros"]
["Nombre del proyecto subvencionado:",null,{"$f":"IF('Relación de gastos'!C5:D5<>\"\",'Relación de gastos'!C5:D5,\"\")","v":""},null,null,"Período de ejecución del proyecto subvencionado:",null,null,{"$f":"'Relación de ingresos '!H5","v":""},"a",{"$f":"'Relación de ingresos '!J5","v":""}]
[]
["SUBVENCIONES PARA LA PROMOCIÓN Y REFUERZO DE LA ECONOMÍA SOCIAL Y SOLIDARIA 2020"]
["GASTOS PREVISTOS",null,"importe en euros",null,null,null,"INGRESOS PREVISTOS",null,"importe en euros"]
["Gastos directos \n(aquellos que se identifican directamente con el proyecto)",null,"Previsión inicial o reformulada ya aprovada (1)","Gastos realizados (2)","Diferencia\n",null,"Ingresos previstos",null,"Previsión inicial (1)","Ingresos obtenidos (3)"]
[null,null,null,null,"(2-1)"]
["Ba","D1.  Retribuciones y seguridad social (régimen general o régimen de autónomos) del personal propio vinculado al proyecto",null,{"$f":"'Relación de gastos'!J17","v":0},{"$f":"+C13-D13","v":0},{"$f":"+IF(D13<0,\"No s'admeten valors negatius\",\"\")","v":""},"A.","Subvención municipal (importe solicitado en la instancia/otorgado)",null,{"$f":"'Relación de ingresos '!F14","v":0},{"$f":"+IF(J13<0,\"No s'admeten valors negatius\",IF(J13<>'Relación de ingresos '!F14,\"No coincideix amb import pestanya anterior\",\"\"))","v":""}]
[null,"D2.  Trabajos realizados por profesionales y empresas externas directamente vinculados al acompañamiento de procesos de la entidad y con sus asociadas",null,{"$f":"'Relación de gastos'!J24","v":0},0,{"$f":"+IF(D14<0,\"No s'admeten valors negatius\",\"\")","v":""},"B.","Subvenciones de otras administraciones",null,{"$f":"'Relación de ingresos '!F19","v":0},{"$f":"+IF(J14<0,\"No s'admeten valors negatius\",\"\")","v":""}]
[null,"D3.  Alquiler de bienes inmuebles directamente vinculados al proyecto",null,{"$f":"'Relación de gastos'!J30","v":0},0,"","C.","Subvenciones de entes privados",null,{"$f":"'Relación de ingresos '!F24","v":0},""]
[null,"D4.  Adquisición de materiales y bienes consumibles íntegramente imputables al proyecto",null,{"$f":"'Relación de gastos'!J36","v":0},0,"","D.","Recursos propios de la entidad aplicados al proyecto",null,{"$f":"'Relación de ingresos '!F29","v":0},""]
[null,"D5.  Publicidad y propaganda de las actividades directamente vinculadas al proyecto",null,{"$f":"'Relación de gastos'!J42","v":0},0,"","E.","Taquillaje",null,{"$f":"'Relación de ingresos '!F34","v":0},""]
[null,"D6.  Viajes y desplazamientos imputables a las actividades del proyecto",null,{"$f":"'Relación de gastos'!J48","v":0},0,"","F.","Cuotas de inscripción",null,{"$f":"'Relación de ingresos '!F39","v":0},""]
[null,"D7.  Gastos del informe de auditoría",null,{"$f":"'Relación de gastos'!J54","v":0},0,"","G.","Venta de Productos",null,{"$f":"'Relación de ingresos '!F44","v":0},""]
[null,"D8. Otros gastos que de manera justificada puedan imputarse directament al proyecto",null,{"$f":"'Relación de gastos'!J60","v":0},0,{"$f":"+IF(D20<0,\"No s'admeten valors negatius\",\"\")","v":""},"H","Publicidad y/o Esponsorización",null,{"$f":"'Relación de ingresos '!F49","v":0},""]
[null,"Total Gastos Directos   ",{"$f":"SUM(C13:C20)","v":0},{"$f":"SUM(D13:D20)","v":0},{"$f":"SUM(E13:E20)","v":0},{"$f":"+IF(D21<0,\"No s'admeten valors negatius\",\"\")","v":""},"I.","Otros ingresos",null,{"$f":"'Relación de ingresos '!F57","v":0},""]
[null,null,null,null,null,{"$f":"+IF(D22<0,\"No s'admeten valors negatius\",\"\")","v":""},null,"Total Ingresos",{"$f":"SUM(I13:I21)","v":0},{"$f":"SUM(J13:J21)","v":0}]
["Gastos indirectos \n(no se pueden asignar directamente al proyecto sin utilizar algún % de asignación)",null,"Previsión inicial o reformulada ya aprovada (1)","Gastos realizados (2)","Diferencia\n"]
[null,null,null,null,"(2-1)"]
["Ba","I.1 Personal de soporte al proyecto (Nóminas y seguridad social)",null,{"$f":"'Relación de gastos'!J68","v":0},{"$f":"+C25-D25","v":0},{"$f":"+IF(D25<0,\"No s'admeten valors negatius\",\"\")","v":""},"Ingresos menos gastos ",null,{"$f":"+I22-C36","v":0},{"$f":"+J22-D36","v":0}]
[null,"I.2  Seguros",null,{"$f":"'Relación de gastos'!J74","v":0},0,"","Desviación de Gastos (4)",null,"Desviación de ingresos (4)"]
[null,"I.3  Amortización",null,{"$f":"'Relación de gastos'!J80","v":0},0,"","Importe"," % ","Importe","%"]
[null,"I.4  Alquiler de bienes inmuebles",null,{"$f":"'Relación de gastos'!J86","v":0},0,"",{"$f":"D36-C36","v":0},{"$f":"D36/C36","v":{"$error":"#DIV/0!"}},{"$f":"J22-I22","v":0},{"$f":"J22/I22","v":{"$error":"#DIV/0!"}}]
[null,"I.5  Adquisición de materiales y bienes consumibles parcialmente imputables al proyecto",null,{"$f":"'Relación de gastos'!J92","v":0},0,"","% subvencionado inicialmente o después de reformulación (5)",null,null,{"$f":"I13/I22","v":{"$error":"#DIV/0!"}}]
[null,"I.6  Mantenimiento de edificios y/o instalaciones",null,{"$f":"'Relación de gastos'!J98","v":0},0,"","% subvencionado después de justificación (6)",null,null,{"$f":"+J13/J22","v":{"$error":"#DIV/0!"}}]
[null,"I.7  Comunicaciones (teléfono, correos, conexión a internet)",null,{"$f":"'Relación de gastos'!J104","v":0},0,""]
[null,"I.8  Gastos financieros",null,{"$f":"'Relación de gastos'!J110","v":0},0,""]
[null,"I.9  Suministros ",null,{"$f":"'Relación de gastos'!J116","v":0},0,""]
[null,"I.10  Trabajo realizado por otras empresas, parcialmente imputables al proyecto (limpieza, seguridad...)",null,{"$f":"'Relación de gastos'!J122","v":0},0,""]
[null,"Total Gastos Indirectos   ",{"$f":"SUM(C25:C34)","v":0},{"$f":"SUM(D25:D34)","v":0},{"$f":"SUM(E25:E34)","v":0}]
[null,"Total Gastos",{"$f":"C21+C35","v":0},{"$f":"D21+D35","v":0},{"$f":"E21+E35","v":0}]
[]
[]
["El Sr./Sra. (indicar el nombre y apellidos de la persona representante que firma la justificación) con DNI/NIE (indicar el núm. DNI) en calidad de persona física beneficiaria o representante legal de la persona jurídica beneficiaria (indicar nombre y apellidos) con NIF (indicar núm DNI)."]
["CERTIFICA que los ingresos imputados al proyecto/actividad/servicio subvencionado deben estar efectivamente ingresados; que custodiará la documentación soporte que lo acredita; que esta documentación se encuentra a disposición del Ayuntamiento de Barcelona o de los otros entes municipales en los archivos de esta Entidad, durante un período mínimo de 4 años a contar desde la fecha de presentación de la presente justificación."]
[]
[]
[null,"Población y fecha: ",null,null,"Firma y sello (en caso de registro físico)"]
[]
["Notas:"]
["(*) Las columnas sombreadas en color se irán rellenando automáticamente a partir de los datos introducidos en los documentos de gastos -detalle e ingresos-detalle. Por lo tanto, no imprimir esta hoja hasta haber llenado las otras."]
["(1) Previsión inicial o reformulación ya aprovada= Se debe indicar la previsión inicial de gastos y de ingresos según aquello que se indicó en el proyecto original en el \"plan de viabilidad económica del proyecto - presupuesto general\". En caso de que ya se haya aprovado una reformulación, se deben indicar las cantidades reformuladas. "]
["(2) Gastos reales = Coste real total del proyecto subvencionado. Automáticamente se introducirán los subtotales de los gastos relacionados en la hoja Gastos-detalle."]
["(3) Ingresos reales = Total de ingresos obtenidos para la realización del proyecto subvencionado. Automáticamente se introducirán los subtotales de los ingresos relacionados en la hoja de Ingresos-detalle."]
["(4) Desviación: En el caso de los gastos, la desviación es la diferencia entre gastos reales y la previsión inicial de gastos; y en el caso de ingresos, la diferencia entre los ingresos reales y la previsión inicial de ingresos. "]
["(5) % financiación municipal = porcentaje que suponen las subvenciones municipales (A) respecto del total de ingresos del proyecto subvencionado."]
["(6) El % de la desviación final de gastos se calcula dividiendo el importe resultante de gastos reales - gastos previstos, entre el total de gastos previstos y de la misma manera los ingresos. En caso de existir una desviación siempre se debe motivar."]
[]
[]
[]
[]
[]
[]
[]
[]
[]
[]
[]
[]
[]
[]
[]
[]
[]
[]
[]
[]
[]
[]
[]
[]
[]
[]
[null,null,0]